[Event "Late-Titled-Tuesday-Blitz-June-04-2024"]
[Site "Chess.com"]
[Date "2024.06.04"]
[Round "5"]
[White "jup1978"]
[Black "jinxy2009"]
[Result "0-1"]
[WhiteElo "2405"]
[BlackElo "2273"]
[TimeControl "180+1"]
[EndTime "14:55:42 PDT"]
[Termination "jinxy2009 won by checkmate"]

1. d4 {[%clk 0:02:53.4]} 1... d5 {[%clk 0:02:58.9]} 2. c4 {[%clk 0:02:53.7]}
2... c6 {[%clk 0:02:59.2]} 3. Nf3 {[%clk 0:02:53.5]} 3... Nf6 {[%clk 0:02:59.4]}
4. Nbd2 {[%clk 0:02:53.7]} 4... Bf5 {[%clk 0:02:49.5]} 5. e3 {[%clk 0:02:54]}
5... e6 {[%clk 0:02:49.4]} 6. b3 {[%clk 0:02:54.3]} 6... Bd6 {[%clk 0:02:42.5]}
7. Nh4 {[%clk 0:02:54]} 7... Bg6 {[%clk 0:02:38.2]} 8. g3 {[%clk 0:02:49.6]}
8... Nbd7 {[%clk 0:02:37.5]} 9. Nxg6 {[%clk 0:02:47.2]} 9... hxg6 {[%clk
0:02:36.2]} 10. Bg2 {[%clk 0:02:47.5]} 10... Qe7 {[%clk 0:02:31]} 11. Bb2 {[%clk
0:02:47.5]} 11... a5 {[%clk 0:02:29.3]} 12. Qc2 {[%clk 0:02:47.5]} 12... O-O
{[%clk 0:02:20.4]} 13. O-O {[%clk 0:02:46.8]} 13... b5 {[%clk 0:02:15.8]} 14. e4
{[%clk 0:02:44.9]} 14... dxe4 {[%clk 0:02:10.4]} 15. Nxe4 {[%clk 0:02:42.5]}
15... Nxe4 {[%clk 0:02:09.9]} 16. Bxe4 {[%clk 0:02:42.9]} 16... Rac8 {[%clk
0:02:09.9]} 17. c5 {[%clk 0:02:35.8]} 17... Bb8 {[%clk 0:02:09.5]} 18. Rfe1
{[%clk 0:02:35.9]} 18... Nf6 {[%clk 0:02:07.6]} 19. Bg2 {[%clk 0:02:30.9]} 19...
Rfd8 {[%clk 0:02:02.4]} 20. a4 {[%clk 0:02:29.6]} 20... b4 {[%clk 0:02:00.7]}
21. Rad1 {[%clk 0:02:29.9]} 21... Nd5 {[%clk 0:02:00]} 22. h4 {[%clk 0:02:28.1]}
22... Qf6 {[%clk 0:01:54.7]} 23. Bc1 {[%clk 0:02:26.3]} 23... Qf5 {[%clk
0:01:30.7]} 24. Qxf5 {[%clk 0:02:15.9]} 24... gxf5 {[%clk 0:01:29.6]} 25. Bg5
{[%clk 0:02:13.8]} 25... Rd7 {[%clk 0:01:28.4]} 26. Rd2 {[%clk 0:02:09.7]} 26...
Bc7 {[%clk 0:01:26.2]} 27. Bxd5 {[%clk 0:02:07.6]} 27... Rxd5 {[%clk 0:01:25.6]}
28. Be3 {[%clk 0:02:04.6]} 28... Bd8 {[%clk 0:01:25]} 29. Rc2 {[%clk 0:02:04]}
29... Bf6 {[%clk 0:01:24.6]} 30. Rc4 {[%clk 0:02:03.9]} 30... Rcd8 {[%clk
0:01:23.9]} 31. Kf1 {[%clk 0:01:58]} 31... Bxd4 {[%clk 0:01:21.3]} 32. Rc2
{[%clk 0:01:56.4]} 32... Bxe3 {[%clk 0:01:16.6]} 33. Rxe3 {[%clk 0:01:57.3]}
33... Kf8 {[%clk 0:01:00.3]} 34. Ke2 {[%clk 0:01:54.9]} 34... Ke7 {[%clk
0:01:00.5]} 35. Rf3 {[%clk 0:01:46.7]} 35... Re5+ {[%clk 0:00:54.9]} 36. Re3
{[%clk 0:01:46.1]} 36... Kf6 {[%clk 0:00:48.8]} 37. f4 {[%clk 0:01:44.2]} 37...
Rxe3+ {[%clk 0:00:42.3]} 38. Kxe3 {[%clk 0:01:45.1]} 38... Rd5 {[%clk
0:00:42.5]} 39. Rc1 {[%clk 0:01:39.9]} 39... e5 {[%clk 0:00:42.1]} 40. fxe5+
{[%clk 0:01:38.6]} 40... Kxe5 {[%clk 0:00:42]} 41. Rc2 {[%clk 0:01:34.6]} 41...
Rd4 {[%clk 0:00:34.5]} 42. Rf2 {[%clk 0:01:31.8]} 42... g6 {[%clk 0:00:28.2]}
43. h5 {[%clk 0:01:31.8]} 43... gxh5 {[%clk 0:00:23.8]} 44. Rh2 {[%clk
0:01:31.7]} 44... Rg4 {[%clk 0:00:19.6]} 45. Kf3 {[%clk 0:01:26.5]} 45... Rg5
{[%clk 0:00:13.5]} 46. Re2+ {[%clk 0:01:24.6]} 46... Kd5 {[%clk 0:00:13.7]} 47.
Rc2 {[%clk 0:01:23.8]} 47... Rg4 {[%clk 0:00:13.5]} 48. Rh2 {[%clk 0:01:21.7]}
48... Kxc5 {[%clk 0:00:12.4]} 49. Rxh5 {[%clk 0:01:21.7]} 49... Kd4 {[%clk
0:00:12.6]} 50. Rxf5 {[%clk 0:01:21.7]} 50... Rg6 {[%clk 0:00:12.3]} 51. Rxa5
{[%clk 0:01:20.5]} 51... Kc3 {[%clk 0:00:12.6]} 52. Rc5+ {[%clk 0:01:19]} 52...
Kxb3 {[%clk 0:00:13.1]} 53. a5 {[%clk 0:01:19.7]} 53... Rg8 {[%clk 0:00:10.3]}
54. Rxc6 {[%clk 0:01:19.1]} 54... Ra8 {[%clk 0:00:10.4]} 55. Rc7 {[%clk
0:01:15.3]} 55... Rxa5 {[%clk 0:00:09.1]} 56. Rxf7 {[%clk 0:01:15.7]} 56... Ka2
{[%clk 0:00:09.3]} 57. Rb7 {[%clk 0:01:15.7]} 57... b3 {[%clk 0:00:09.4]} 58. g4
{[%clk 0:01:13.5]} 58... Ra4 {[%clk 0:00:04.5]} 59. g5 {[%clk 0:01:02.4]} 59...
b2 {[%clk 0:00:04.2]} 60. g6 {[%clk 0:01:01.8]} 60... b1=Q {[%clk 0:00:04.4]}
61. Rxb1 {[%clk 0:00:57.5]} 61... Kxb1 {[%clk 0:00:05.3]} 62. g7 {[%clk
0:00:57.5]} 62... Ra8 {[%clk 0:00:05.3]} 63. Kf4 {[%clk 0:00:58.4]} 63... Rg8
{[%clk 0:00:05.9]} 64. Kf5 {[%clk 0:00:59.3]} 64... Rxg7 {[%clk 0:00:06.8]} 65.
Kf6 {[%clk 0:01:00.2]} 65... Ra7 {[%clk 0:00:07.4]} 66. Kf5 {[%clk 0:01:00.8]}
66... Ra6 {[%clk 0:00:07.4]} 67. Ke5 {[%clk 0:01:00.9]} 67... Kb2 {[%clk
0:00:08.1]} 68. Kd5 {[%clk 0:01:01.8]} 68... Kb3 {[%clk 0:00:08.6]} 69. Kc5
{[%clk 0:01:02.7]} 69... Ka4 {[%clk 0:00:08.5]} 70. Kc4 {[%clk 0:01:02.6]} 70...
Rc6+ {[%clk 0:00:08.1]} 71. Kd5 {[%clk 0:01:03.5]} 71... Rc8 {[%clk 0:00:07.9]}
72. Ke5 {[%clk 0:01:04.4]} 72... Kb5 {[%clk 0:00:08.3]} 73. Kd5 {[%clk
0:01:05.3]} 73... Rd8+ {[%clk 0:00:08.6]} 74. Ke6 {[%clk 0:01:05.3]} 74... Kc5
{[%clk 0:00:08.8]} 75. Ke7 {[%clk 0:01:06.2]} 75... Rd1 {[%clk 0:00:09]} 76. Ke6
{[%clk 0:01:07.1]} 76... Rd2 {[%clk 0:00:08.6]} 77. Kf7 {[%clk 0:01:08]} 77...
Re2 {[%clk 0:00:08.1]} 78. Kf6 {[%clk 0:01:08.9]} 78... Kd5 {[%clk 0:00:08.2]}
79. Kg5 {[%clk 0:01:09.8]} 79... Rf2 {[%clk 0:00:08.2]} 80. Kg4 {[%clk
0:01:09.8]} 80... Ke5 {[%clk 0:00:08.7]} 81. Kg3 {[%clk 0:01:10.7]} 81... Rf8
{[%clk 0:00:08.9]} 82. Kh3 {[%clk 0:01:11.5]} 82... Rg8 {[%clk 0:00:08.8]} 83.
Kh4 {[%clk 0:01:12.4]} 83... Kf5 {[%clk 0:00:08.8]} 84. Kh5 {[%clk 0:01:13.3]}
84... Rh8# {[%clk 0:00:09]} 0-1

[Event "Late-Titled-Tuesday-Blitz-June-04-2024"]
[Site "Chess.com"]
[Date "2024.06.04"]
[Round "5"]
[White "gabduschew"]
[Black "WPWPWP-2015"]
[Result "0-1"]
[WhiteElo "2330"]
[BlackElo "2525"]
[TimeControl "180+1"]
[EndTime "14:55:43 PDT"]
[Termination "WPWPWP-2015 won on time"]

1. e4 {[%clk 0:03:00.9]} 1... c5 {[%clk 0:02:55.1]} 2. Nf3 {[%clk 0:03:00.7]}
2... d6 {[%clk 0:02:54.8]} 3. d4 {[%clk 0:03:00.4]} 3... cxd4 {[%clk 0:02:55]}
4. Nxd4 {[%clk 0:03:00.6]} 4... Nf6 {[%clk 0:02:55.4]} 5. Bd3 {[%clk 0:03:00.6]}
5... e6 {[%clk 0:02:51.3]} 6. c4 {[%clk 0:03:00.3]} 6... Be7 {[%clk 0:02:50.5]}
7. Nc3 {[%clk 0:03:00.4]} 7... O-O {[%clk 0:02:49.9]} 8. O-O {[%clk 0:03:01]}
8... Nbd7 {[%clk 0:02:48]} 9. Qe2 {[%clk 0:02:54.7]} 9... Re8 {[%clk 0:02:40.6]}
10. b3 {[%clk 0:02:47.7]} 10... a6 {[%clk 0:02:37.6]} 11. Bb2 {[%clk 0:02:47.7]}
11... Qc7 {[%clk 0:02:32.1]} 12. Kh1 {[%clk 0:02:40.7]} 12... b6 {[%clk
0:02:30.2]} 13. Rae1 {[%clk 0:02:36.1]} 13... Bb7 {[%clk 0:02:29.7]} 14. f4
{[%clk 0:02:35.8]} 14... Qc5 {[%clk 0:02:13.1]} 15. Nf3 {[%clk 0:02:31.2]} 15...
e5 {[%clk 0:02:09.6]} 16. fxe5 {[%clk 0:02:22.7]} 16... Nxe5 {[%clk 0:02:08.7]}
17. Nxe5 {[%clk 0:02:20.4]} 17... dxe5 {[%clk 0:02:07.2]} 18. Nd5 {[%clk
0:02:18.9]} 18... Bxd5 {[%clk 0:01:44.4]} 19. exd5 {[%clk 0:02:18.2]} 19... Bd6
{[%clk 0:00:34.1]} 20. Bf5 {[%clk 0:00:24.9]} 20... b5 {[%clk 0:00:27.1]} 21. g4
{[%clk 0:00:17.1]} 21... h6 {[%clk 0:00:25.3]} 22. h4 {[%clk 0:00:16.7]} 22...
bxc4 {[%clk 0:00:24]} 23. bxc4 {[%clk 0:00:16.9]} 23... Reb8 {[%clk 0:00:18]}
24. g5 {[%clk 0:00:14.4]} 24... hxg5 {[%clk 0:00:13.7]} 25. hxg5 {[%clk
0:00:15.3]} 25... Rxb2 {[%clk 0:00:12.5]} 26. Qxb2 {[%clk 0:00:14.8]} 26... Nh5
{[%clk 0:00:12.8]} 27. Qg2 {[%clk 0:00:11.1]} 27... g6 {[%clk 0:00:12.5]} 28.
Bg4 {[%clk 0:00:10.9]} 28... Nf4 {[%clk 0:00:11.2]} 29. Qe4 {[%clk 0:00:06.2]}
29... Kg7 {[%clk 0:00:10.5]} 30. Rxf4 {[%clk 0:00:04.8]} 30... Rh8+ {[%clk
0:00:09.5]} 31. Kg2 {[%clk 0:00:04.2]} 31... exf4 {[%clk 0:00:09.2]} 32. Rh1
{[%clk 0:00:03.6]} 32... Rxh1 {[%clk 0:00:04]} 33. Kxh1 {[%clk 0:00:04.5]} 33...
Qf2 {[%clk 0:00:03.5]} 34. Qf3 {[%clk 0:00:02.6]} 34... Qe1+ {[%clk 0:00:03.4]}
35. Kg2 {[%clk 0:00:02.3]} 35... Qd2+ {[%clk 0:00:03.4]} 36. Qe2 {[%clk
0:00:02.3]} 36... Qc3 {[%clk 0:00:02.9]} 37. Bf3 {[%clk 0:00:02.7]} 37... Qd4
{[%clk 0:00:02.3]} 38. Qe4 {[%clk 0:00:02.2]} 38... Qd2+ {[%clk 0:00:02.1]} 39.
Qe2 {[%clk 0:00:02.6]} 39... Qc3 {[%clk 0:00:02.2]} 40. Qe4 {[%clk 0:00:03]}
40... Bc5 {[%clk 0:00:02.3]} 41. Qe2 {[%clk 0:00:02.7]} 41... Qd4 {[%clk
0:00:02.5]} 42. Qf1 {[%clk 0:00:02.2]} 42... Qd2+ {[%clk 0:00:02]} 43. Qe2
{[%clk 0:00:02.5]} 43... Qd4 {[%clk 0:00:02]} 44. Qf1 {[%clk 0:00:02.9]} 44...
Kf8 {[%clk 0:00:02.1]} 45. Bg4 {[%clk 0:00:01.6]} 45... Qe3 {[%clk 0:00:01.7]}
46. Bf3 {[%clk 0:00:01.5]} 46... Qd2+ {[%clk 0:00:01.6]} 47. Qe2 {[%clk
0:00:01.9]} 47... Qd4 {[%clk 0:00:01.4]} 48. Qf1 {[%clk 0:00:01.7]} 48... Be7
{[%clk 0:00:01.5]} 0-1

[Event "Late-Titled-Tuesday-Blitz-June-04-2024"]
[Site "Chess.com"]
[Date "2024.06.04"]
[Round "5"]
[White "Jospem"]
[Black "traviscottofficial"]
[Result "1-0"]
[WhiteElo "3031"]
[BlackElo "2679"]
[TimeControl "180+1"]
[EndTime "14:55:44 PDT"]
[Termination "Jospem won by resignation"]

1. e4 {[%clk 0:03:00.9]} 1... e5 {[%clk 0:02:57.7]} 2. Nf3 {[%clk 0:03:01]} 2...
Nc6 {[%clk 0:02:56.9]} 3. Nc3 {[%clk 0:03:01.4]} 3... Nf6 {[%clk 0:02:56.3]} 4.
g3 {[%clk 0:03:01.9]} 4... Bc5 {[%clk 0:02:53]} 5. Bg2 {[%clk 0:03:01.4]} 5...
O-O {[%clk 0:02:53.5]} 6. d3 {[%clk 0:03:01.1]} 6... d6 {[%clk 0:02:53.2]} 7.
O-O {[%clk 0:02:59.8]} 7... h6 {[%clk 0:02:52]} 8. h3 {[%clk 0:03:00]} 8... a6
{[%clk 0:02:51.6]} 9. Kh2 {[%clk 0:02:52.9]} 9... Nd4 {[%clk 0:02:36.8]} 10. Be3
{[%clk 0:02:49.3]} 10... Nxf3+ {[%clk 0:02:35.5]} 11. Qxf3 {[%clk 0:02:50.2]}
11... Bxe3 {[%clk 0:02:35.5]} 12. Qxe3 {[%clk 0:02:51.1]} 12... Qe7 {[%clk
0:02:31.1]} 13. f4 {[%clk 0:02:49.7]} 13... c6 {[%clk 0:02:26.5]} 14. Rae1
{[%clk 0:02:47.8]} 14... Bd7 {[%clk 0:02:18.3]} 15. Qf3 {[%clk 0:02:35.8]} 15...
Rae8 {[%clk 0:02:14.7]} 16. Nd1 {[%clk 0:02:34]} 16... Nh7 {[%clk 0:01:55.4]}
17. Ne3 {[%clk 0:02:32.3]} 17... Kh8 {[%clk 0:01:47.7]} 18. Qh5 {[%clk 0:02:17]}
18... Qe6 {[%clk 0:01:37.9]} 19. b3 {[%clk 0:02:11.3]} 19... Nf6 {[%clk
0:01:30.8]} 20. Qd1 {[%clk 0:02:11.2]} 20... Qe7 {[%clk 0:01:27.8]} 21. a4
{[%clk 0:02:03.5]} 21... Ra8 {[%clk 0:01:18.7]} 22. a5 {[%clk 0:02:02.8]} 22...
Rae8 {[%clk 0:01:17.3]} 23. Qd2 {[%clk 0:02:02.1]} 23... Nh5 {[%clk 0:01:13.5]}
24. Nc4 {[%clk 0:01:53]} 24... Be6 {[%clk 0:01:05]} 25. Ne3 {[%clk 0:01:38]}
25... Bc8 {[%clk 0:00:50.1]} 26. Qf2 {[%clk 0:01:37.8]} 26... Nf6 {[%clk
0:00:32.6]} 27. Nc4 {[%clk 0:01:21.4]} 27... Nd7 {[%clk 0:00:28.9]} 28. d4
{[%clk 0:00:58.7]} 28... Rd8 {[%clk 0:00:23.2]} 29. c3 {[%clk 0:00:56.3]} 29...
f6 {[%clk 0:00:15.7]} 30. Ne3 {[%clk 0:00:47.4]} 30... Nb8 {[%clk 0:00:13.7]}
31. Kg1 {[%clk 0:00:35.8]} 31... Be6 {[%clk 0:00:13.2]} 32. b4 {[%clk
0:00:34.8]} 32... Bc8 {[%clk 0:00:10.5]} 33. h4 {[%clk 0:00:34.9]} 33... Rfe8
{[%clk 0:00:10.7]} 34. Rd1 {[%clk 0:00:34.5]} 34... Qf7 {[%clk 0:00:11]} 35.
dxe5 {[%clk 0:00:33.5]} 35... dxe5 {[%clk 0:00:11]} 36. Rxd8 {[%clk 0:00:33.7]}
36... Rxd8 {[%clk 0:00:11.3]} 37. fxe5 {[%clk 0:00:34.6]} 37... Nd7 {[%clk
0:00:10.6]} 38. exf6 {[%clk 0:00:32.6]} 38... Qxf6 {[%clk 0:00:11]} 39. Qxf6
{[%clk 0:00:25.3]} 39... Nxf6 {[%clk 0:00:11.4]} 40. e5 {[%clk 0:00:25.9]} 40...
Ng8 {[%clk 0:00:10.4]} 41. Nc4 {[%clk 0:00:24.9]} 41... Be6 {[%clk 0:00:09.7]}
42. Nd6 {[%clk 0:00:25.2]} 42... Rd7 {[%clk 0:00:08.6]} 43. Rf8 {[%clk
0:00:25.2]} 43... g6 {[%clk 0:00:08]} 44. Be4 {[%clk 0:00:25.9]} 44... Kg7
{[%clk 0:00:08.2]} 45. Rb8 {[%clk 0:00:26.2]} 45... Ne7 {[%clk 0:00:05.7]} 46.
Rxb7 {[%clk 0:00:26]} 46... Rxb7 {[%clk 0:00:05.2]} 47. Nxb7 {[%clk 0:00:26.9]}
47... Bd5 {[%clk 0:00:05.5]} 48. Bd3 {[%clk 0:00:26.1]} 48... Bb3 {[%clk
0:00:04]} 49. Nc5 {[%clk 0:00:26.5]} 49... Bf7 {[%clk 0:00:04.1]} 50. Bxa6
{[%clk 0:00:27.3]} 50... Nd5 {[%clk 0:00:04.4]} 51. e6 {[%clk 0:00:27.7]} 51...
Be8 {[%clk 0:00:04.3]} 52. Bb7 {[%clk 0:00:28.2]} 52... Nxc3 {[%clk 0:00:04.8]}
53. a6 {[%clk 0:00:28.6]} 53... Nb5 {[%clk 0:00:05.3]} 54. Nd7 {[%clk
0:00:29.1]} 54... Na7 {[%clk 0:00:03.7]} 55. Kf2 {[%clk 0:00:27]} 55... g5
{[%clk 0:00:04]} 56. Ke3 {[%clk 0:00:27]} 56... Kg6 {[%clk 0:00:04.4]} 57. Ke4
{[%clk 0:00:26.3]} 57... gxh4 {[%clk 0:00:04.8]} 58. gxh4 {[%clk 0:00:27.2]}
58... Kh5 {[%clk 0:00:05.5]} 59. Nf6+ {[%clk 0:00:27.5]} 59... Kxh4 {[%clk
0:00:05.7]} 60. Nxe8 {[%clk 0:00:28.4]} 60... Kg5 {[%clk 0:00:06.5]} 61. Ke5
{[%clk 0:00:28.4]} 61... Kg6 {[%clk 0:00:06.4]} 62. Nd6 {[%clk 0:00:28.7]} 1-0

[Event "Late-Titled-Tuesday-Blitz-June-04-2024"]
[Site "Chess.com"]
[Date "2024.06.04"]
[Round "5"]
[White "Slovak_fighter2000"]
[Black "Sl4werThanYou"]
[Result "0-1"]
[WhiteElo "2525"]
[BlackElo "2752"]
[TimeControl "180+1"]
[EndTime "14:55:45 PDT"]
[Termination "Sl4werThanYou won by checkmate"]

1. d4 {[%clk 0:03:00.9]} 1... Nf6 {[%clk 0:02:55.2]} 2. c4 {[%clk 0:03:00.2]}
2... e6 {[%clk 0:02:54]} 3. Nf3 {[%clk 0:02:59.3]} 3... h6 {[%clk 0:02:51.1]} 4.
g3 {[%clk 0:02:53.9]} 4... d5 {[%clk 0:02:49.2]} 5. Bg2 {[%clk 0:02:53.8]} 5...
Bb4+ {[%clk 0:02:49.7]} 6. Bd2 {[%clk 0:02:53.5]} 6... Be7 {[%clk 0:02:50.2]} 7.
O-O {[%clk 0:02:52.3]} 7... O-O {[%clk 0:02:50.9]} 8. Qc2 {[%clk 0:02:52.3]}
8... c6 {[%clk 0:02:50.9]} 9. Bf4 {[%clk 0:02:52]} 9... Nbd7 {[%clk 0:02:48.5]}
10. Nbd2 {[%clk 0:02:50.9]} 10... Nh5 {[%clk 0:02:41.7]} 11. Be3 {[%clk
0:02:49.4]} 11... f5 {[%clk 0:02:33]} 12. Bf4 {[%clk 0:02:24]} 12... Nxf4 {[%clk
0:02:08.5]} 13. gxf4 {[%clk 0:02:22.9]} 13... g5 {[%clk 0:02:09.2]} 14. fxg5
{[%clk 0:02:17.7]} 14... hxg5 {[%clk 0:02:10.1]} 15. Ne1 {[%clk 0:01:52.5]}
15... Nf6 {[%clk 0:02:08.2]} 16. e3 {[%clk 0:01:47.6]} 16... Bd7 {[%clk
0:02:03.7]} 17. Nd3 {[%clk 0:01:47.4]} 17... Bd6 {[%clk 0:02:00.1]} 18. Nf3
{[%clk 0:01:43.8]} 18... Qe7 {[%clk 0:01:53.4]} 19. Nfe5 {[%clk 0:01:41.8]}
19... Be8 {[%clk 0:01:50]} 20. c5 {[%clk 0:01:41.4]} 20... Bc7 {[%clk
0:01:49.9]} 21. f4 {[%clk 0:01:39.3]} 21... Ng4 {[%clk 0:01:44.7]} 22. Nxg4
{[%clk 0:01:29.5]} 22... fxg4 {[%clk 0:01:45.6]} 23. Ne5 {[%clk 0:01:28.2]}
23... Bxe5 {[%clk 0:01:34.4]} 24. fxe5 {[%clk 0:01:26.7]} 24... Bh5 {[%clk
0:01:34.8]} 25. Rxf8+ {[%clk 0:01:20.3]} 25... Rxf8 {[%clk 0:01:34.2]} 26. Rf1
{[%clk 0:01:20.8]} 26... Kg7 {[%clk 0:01:32.7]} 27. Rxf8 {[%clk 0:01:20]} 27...
Qxf8 {[%clk 0:01:33.6]} 28. Qf2 {[%clk 0:01:20]} 28... Qd8 {[%clk 0:01:29.5]}
29. Bf1 {[%clk 0:01:13.6]} 29... b6 {[%clk 0:01:27.2]} 30. b4 {[%clk 0:01:09.6]}
30... bxc5 {[%clk 0:01:26]} 31. bxc5 {[%clk 0:01:09.2]} 31... Bg6 {[%clk
0:01:25]} 32. Ba6 {[%clk 0:01:01.1]} 32... Bf5 {[%clk 0:01:11.4]} 33. Qb2 {[%clk
0:00:59.6]} 33... Qa5 {[%clk 0:01:05.2]} 34. Bf1 {[%clk 0:00:52.8]} 34... Qe1
{[%clk 0:01:03.6]} 35. Qe2 {[%clk 0:00:47.9]} 35... Qc1 {[%clk 0:01:00.3]} 36.
Kg2 {[%clk 0:00:40.9]} 36... Kh6 {[%clk 0:01:00.1]} 37. Kg3 {[%clk 0:00:38.2]}
37... a5 {[%clk 0:00:59.2]} 38. Qf2 {[%clk 0:00:34.8]} 38... a4 {[%clk
0:00:40.9]} 39. Be2 {[%clk 0:00:34.7]} 39... Qc2 {[%clk 0:00:40.9]} 40. Bf1
{[%clk 0:00:34.6]} 40... a3 {[%clk 0:00:36.9]} 41. Qe1 {[%clk 0:00:17.5]} 41...
Qxa2 {[%clk 0:00:32.7]} 42. Qa5 {[%clk 0:00:17.4]} 42... Qb3 {[%clk 0:00:31.4]}
43. Kf2 {[%clk 0:00:12.6]} 43... Qb2+ {[%clk 0:00:30.3]} 44. Kg1 {[%clk
0:00:11.9]} 44... Qc1 {[%clk 0:00:22.3]} 45. Kf2 {[%clk 0:00:09.4]} 45... Qb2+
{[%clk 0:00:19.4]} 46. Kg1 {[%clk 0:00:09.7]} 46... g3 {[%clk 0:00:17.5]} 47.
hxg3 {[%clk 0:00:09.2]} 47... Kh5 {[%clk 0:00:17.7]} 48. Qd8 {[%clk 0:00:06.3]}
48... Kg4 {[%clk 0:00:15.9]} 49. Qg8 {[%clk 0:00:01.4]} 49... a2 {[%clk
0:00:14]} 50. Qg7 {[%clk 0:00:01]} 50... a1=Q {[%clk 0:00:13.1]} 51. Qh6 {[%clk
0:00:01.7]} 51... Qxf1+ {[%clk 0:00:10.3]} 52. Kxf1 {[%clk 0:00:02]} 52... Bd3+
{[%clk 0:00:10]} 53. Kg1 {[%clk 0:00:02.4]} 53... Qc1+ {[%clk 0:00:10.6]} 54.
Kh2 {[%clk 0:00:02.5]} 54... Qd2+ {[%clk 0:00:11.5]} 55. Kh1 {[%clk 0:00:03]}
55... Be4+ {[%clk 0:00:11.5]} 56. Kg1 {[%clk 0:00:02.9]} 56... Qg2# {[%clk
0:00:12.4]} 0-1

[Event "Late-Titled-Tuesday-Blitz-June-04-2024"]
[Site "Chess.com"]
[Date "2024.06.04"]
[Round "5"]
[White "oskariot"]
[Black "NCchamp"]
[Result "1-0"]
[WhiteElo "2692"]
[BlackElo "2430"]
[TimeControl "180+1"]
[EndTime "14:55:54 PDT"]
[Termination "oskariot won on time"]

1. e4 {[%clk 0:03:00.9]} 1... c6 {[%clk 0:02:58.3]} 2. d4 {[%clk 0:03:00.3]}
2... d5 {[%clk 0:02:59.2]} 3. Nd2 {[%clk 0:03:00.6]} 3... dxe4 {[%clk
0:02:57.2]} 4. Nxe4 {[%clk 0:03:01.5]} 4... Nf6 {[%clk 0:02:57.6]} 5. Nxf6+
{[%clk 0:03:01.5]} 5... exf6 {[%clk 0:02:58.5]} 6. Bd3 {[%clk 0:02:49.4]} 6...
Bd6 {[%clk 0:02:56.8]} 7. Qh5 {[%clk 0:02:49.2]} 7... Be6 {[%clk 0:02:22.1]} 8.
Ne2 {[%clk 0:02:47.4]} 8... Nd7 {[%clk 0:02:19.6]} 9. Nf4 {[%clk 0:02:40.4]}
9... Bxf4 {[%clk 0:02:09.6]} 10. Bxf4 {[%clk 0:02:41.3]} 10... Nb6 {[%clk
0:02:09.6]} 11. O-O-O {[%clk 0:02:23.7]} 11... Nd5 {[%clk 0:02:04]} 12. Bd2
{[%clk 0:02:15.6]} 12... Qb6 {[%clk 0:01:48.9]} 13. Rhe1 {[%clk 0:01:43.4]}
13... O-O-O {[%clk 0:01:22.5]} 14. c3 {[%clk 0:01:27.9]} 14... g6 {[%clk
0:00:58.6]} 15. Qf3 {[%clk 0:01:22]} 15... f5 {[%clk 0:00:57.7]} 16. Qg3 {[%clk
0:01:12.9]} 16... Qc7 {[%clk 0:00:55.9]} 17. Qxc7+ {[%clk 0:01:12.5]} 17... Kxc7
{[%clk 0:00:55.3]} 18. c4 {[%clk 0:01:09.4]} 18... Ne7 {[%clk 0:00:44]} 19. Bf4+
{[%clk 0:01:01.4]} 19... Kc8 {[%clk 0:00:42.4]} 20. Be5 {[%clk 0:01:01.9]} 20...
Rhe8 {[%clk 0:00:40.4]} 21. b3 {[%clk 0:00:59.9]} 21... Ng8 {[%clk 0:00:35.9]}
22. Bc2 {[%clk 0:00:54.9]} 22... f6 {[%clk 0:00:35.4]} 23. Bf4 {[%clk
0:00:55.2]} 23... Bf7 {[%clk 0:00:35]} 24. Rxe8 {[%clk 0:00:49.5]} 24... Rxe8
{[%clk 0:00:35.9]} 25. h4 {[%clk 0:00:39]} 25... Ne7 {[%clk 0:00:26.3]} 26. Re1
{[%clk 0:00:38.8]} 26... Kd7 {[%clk 0:00:25.3]} 27. Kd2 {[%clk 0:00:38]} 27...
Nc8 {[%clk 0:00:24.3]} 28. Rxe8 {[%clk 0:00:37.4]} 28... Bxe8 {[%clk 0:00:24.2]}
29. a4 {[%clk 0:00:34]} 29... Nd6 {[%clk 0:00:21.1]} 30. a5 {[%clk 0:00:30.5]}
30... a6 {[%clk 0:00:20.9]} 31. f3 {[%clk 0:00:28.2]} 31... Bf7 {[%clk
0:00:20.4]} 32. Kd3 {[%clk 0:00:26]} 32... Ke7 {[%clk 0:00:18.8]} 33. Bc1 {[%clk
0:00:25.8]} 33... Kd7 {[%clk 0:00:18.7]} 34. Ba3 {[%clk 0:00:25.8]} 34... Be6
{[%clk 0:00:15.7]} 35. Bc1 {[%clk 0:00:23.1]} 35... Bf7 {[%clk 0:00:15.3]} 36.
Kc3 {[%clk 0:00:23]} 36... Nc8 {[%clk 0:00:15]} 37. Kb4 {[%clk 0:00:22.1]} 37...
Be6 {[%clk 0:00:09.3]} 38. Bf4 {[%clk 0:00:20.3]} 38... Bf7 {[%clk 0:00:09.4]}
39. Kc5 {[%clk 0:00:20.4]} 39... Be6 {[%clk 0:00:09.5]} 40. b4 {[%clk
0:00:20.7]} 40... Bf7 {[%clk 0:00:08.6]} 41. Ba4 {[%clk 0:00:21]} 41... Kd8
{[%clk 0:00:05.2]} 42. d5 {[%clk 0:00:19.3]} 42... cxd5 {[%clk 0:00:03.2]} 43.
cxd5 {[%clk 0:00:20.2]} 43... Be8 {[%clk 0:00:02]} 44. Bb3 {[%clk 0:00:14.7]}
44... Bb5 {[%clk 0:00:02.1]} 45. d6 {[%clk 0:00:13.3]} 45... Bd7 {[%clk
0:00:02.4]} 46. Bg8 {[%clk 0:00:12.4]} 46... Bc6 {[%clk 0:00:01.6]} 47. Bxh7
{[%clk 0:00:11.9]} 47... Be8 {[%clk 0:00:02.2]} 48. Bg8 {[%clk 0:00:11.8]} 48...
Bd7 {[%clk 0:00:01.9]} 49. Bf7 {[%clk 0:00:12.1]} 49... Be8 {[%clk 0:00:02.4]}
50. Bxe8 {[%clk 0:00:12.1]} 50... Kxe8 {[%clk 0:00:03.3]} 51. g4 {[%clk
0:00:12.7]} 51... fxg4 {[%clk 0:00:02.6]} 52. fxg4 {[%clk 0:00:13.6]} 52... Kd7
{[%clk 0:00:02.5]} 53. h5 {[%clk 0:00:14.1]} 53... gxh5 {[%clk 0:00:02.5]} 54.
gxh5 {[%clk 0:00:15]} 54... Ke6 {[%clk 0:00:02.7]} 55. h6 {[%clk 0:00:15.2]}
55... Kf7 {[%clk 0:00:02.9]} 56. h7 {[%clk 0:00:14.4]} 56... Kg7 {[%clk
0:00:03]} 57. d7 {[%clk 0:00:15.1]} 57... Ne7 {[%clk 0:00:02.5]} 58. d8=Q {[%clk
0:00:15.4]} 1-0